fUSD/lending_fUSD_20260405
["ID","MTS","AMOUNT","RATE_DAILY","PERIOD"]
[419780387,1775375464558,-989.7,0.00015998,2]
[419780388,1775375464568,-1289.0,0.00015998,2]
[419780389,1775375464577,-889.96,0.00015998,2]
[419780390,1775375464587,-536.08,0.00015998,2]
[419780391,1775375464596,-698.2,0.00015998,2]
[419780392,1775375464605,-500.0,0.00015998,2]
[419780393,1775375464614,-666.0,0.00015998,2]
[419780394,1775375464623,-608.83994388,0.00015998,2]
[419780395,1775375464633,-666.0,0.00015999,2]
[419780396,1775375464642,-749.82,0.00015999,2]
[419780397,1775375464652,-749.82,0.00015999,2]
[419780398,1775375464661,-749.82,0.00015999,2]
[419780399,1775375464670,-749.82,0.00015999,2]
[419780400,1775375464679,-749.82,0.00015999,2]
[419780401,1775375464689,-749.82,0.00015999,2]
[419780402,1775375464698,-749.82,0.00015999,2]
[419780403,1775375464707,-749.82,0.00015999,2]
[419780404,1775375464717,-749.82,0.00015999,2]
[419780405,1775375464726,-749.82,0.00015999,2]
[419780406,1775375464736,-749.82,0.00015999,2]
[419780407,1775375464745,-749.82,0.00015999,2]
[419780408,1775375464755,-749.8209854,0.00015999,2]
[419780409,1775375464764,-636.91,0.00015999,2]
[419780410,1775375464774,-636.91,0.00015999,2]
[419780411,1775375464783,-636.91,0.00015999,2]
[419780412,1775375464792,-636.91,0.00015999,2]
[419780413,1775375464802,-636.91,0.00015999,2]
[419780414,1775375464811,-636.91,0.00015999,2]
[419780415,1775375464820,-636.91,0.00015999,2]
[419780416,1775375464830,-636.91,0.00015999,2]
[419780417,1775375464839,-636.91,0.00015999,2]
[419780418,1775375464848,-636.91,0.00015999,2]
[419780419,1775375464857,-636.91,0.00015999,2]
[419780420,1775375464867,-636.91,0.00015999,2]
[419780421,1775375464876,-636.97397972,0.00015999,2]
[419780422,1775375464885,-500.0,0.00015999,2]
[419780423,1775375464894,-500.0,0.00015999,2]
[419780424,1775375464904,-500.0,0.00015999,2]
[419780425,1775375464913,-484.03247685,0.00015999,2]
[419780426,1775375464923,-566.37,0.00015999,2]
[419780427,1775375464932,-566.37,0.00015999,2]
[419780428,1775375464941,-566.37,0.00015999,2]
[419780429,1775375464950,-566.37,0.00015999,2]
[419780430,1775375464959,-566.37,0.00015999,2]
[419780431,1775375464969,-566.37,0.00015999,2]
[419780432,1775375464978,-566.37,0.00015999,2]
[419780433,1775375464987,-566.37,0.00015999,2]
[419780434,1775375464996,-566.37,0.00015999,2]
[419780435,1775375465006,-566.37,0.00015999,2]
[419780436,1775375465015,-566.37,0.00015999,2]
[419780437,1775375465024,-566.57178076,0.00015999,2]
[419780438,1775375465033,-500.0,0.00015999,2]
[419780439,1775375465043,-728.92,0.00015999,2]
[419780440,1775375465052,-728.92,0.00015999,2]
[419780441,1775375465062,-728.92,0.00015999,2]
[419780442,1775375465072,-728.92,0.00015999,2]
[419780443,1775375465081,-728.92,0.00015999,2]
[419780444,1775375465091,-728.92,0.00015999,2]
[419780445,1775375465101,-728.92,0.00015999,2]
[419780446,1775375465111,-728.92,0.00015999,2]
[419780447,1775375465121,-728.92,0.00015999,2]
[419780448,1775375465130,-728.92,0.00015999,2]
[419780449,1775375465140,-728.92,0.00015999,2]
[419780450,1775375465149,-729.12278756,0.00015999,2]
[419780451,1775375465159,-500.0,0.00015999,2]
[419780452,1775375465169,-500.0,0.00015999,2]
[419780453,1775375465178,-500.0,0.00015999,2]
[419780454,1775375465188,-500.0,0.00015999,2]
[419780455,1775375465198,-500.0,0.00015999,2]
[419780456,1775375465208,-500.0,0.00015999,2]
[419780457,1775375465218,-500.0,0.00015999,2]
[419780458,1775375465227,-467.45469685,0.00015999,2]
[419780459,1775375465236,-600.48,0.00015999,2]
[419780460,1775375465246,-600.48,0.00015999,2]
[419780461,1775375465255,-600.48,0.00015999,2]
[419780462,1775375465265,-600.48,0.00015999,2]
[419780463,1775375465275,-600.48,0.00015999,2]
[419780464,1775375465284,-600.48,0.00015999,2]
[419780465,1775375465294,-600.48,0.00015999,2]
[419780466,1775375465303,-600.48,0.00015999,2]
[419780467,1775375465314,-600.48,0.00015999,2]
[419780468,1775375465323,-600.48,0.00015999,2]
[419780469,1775375465334,-600.48,0.00015999,2]
[419780470,1775375465343,-600.48,0.00015999,2]
[419780471,1775375465354,-600.62513851,0.00015999,2]
[419780472,1775375465363,-1418.01,0.00015999,2]
[419780473,1775375465373,-1418.01,0.00015999,2]
[419780474,1775375465382,-1418.01,0.00015999,2]
[419780475,1775375465392,-1418.01,0.00015999,2]
[419780476,1775375465402,-1418.01,0.00015999,2]
[419780477,1775375465412,-1418.01,0.00015999,2]
[419780478,1775375465422,-1418.01,0.00015999,2]
[419780479,1775375465432,-1418.01,0.00015999,2]
[419780480,1775375465442,-1418.01,0.00015999,2]
[419780481,1775375465453,-1418.01,0.00015999,2]
[419780482,1775375465462,-1418.01,0.00015999,2]
[419780483,1775375465470,-1418.01,0.00015999,2]
[419780484,1775375465478,-1418.0210465,0.00015999,2]
[419780485,1775375465486,-720.34,0.00015999,2]
[419780486,1775375465495,-720.34,0.00015999,2]
[419780487,1775375465503,-720.34,0.00015999,2]
[419780488,1775375465512,-720.34,0.00015999,2]
[419780489,1775375465523,-720.34,0.00015999,2]
[419780490,1775375465531,-720.34,0.00015999,2]
[419780491,1775375465540,-720.34,0.00015999,2]
[419780492,1775375465549,-720.34,0.00015999,2]
[419780493,1775375465556,-720.34,0.00015999,2]
[419780494,1775375465565,-720.34,0.00015999,2]
[419780495,1775375465573,-720.34,0.00015999,2]
[419780496,1775375465582,-720.34,0.00015999,2]
[419780497,1775375465591,-720.54950636,0.00015999,2]
[419780498,1775375465601,-1201.15,0.00015999,2]
[419780499,1775375465610,-1201.15,0.00015999,2]
[419780500,1775375465619,-1201.15,0.00015999,2]
[419780501,1775375465629,-1201.15,0.00015999,2]
[419780502,1775375465638,-1201.15,0.00015999,2]
[419780503,1775375465648,-1201.15,0.00015999,2]
[419780504,1775375465657,-1201.15,0.00015999,2]
[419780505,1775375465666,-1201.15,0.00015999,2]
[419780506,1775375465675,-1201.15,0.00015999,2]
[419780507,1775375465684,-1201.15,0.00015999,2]
[419780508,1775375465694,-1201.15,0.00015999,2]
[419780509,1775375465703,-1201.15,0.00015999,2]
[419780510,1775375465712,-1201.16484396,0.00015999,2]
[419780511,1775375465722,-2000.0000009,0.00015999,2]
[419780512,1775375465732,-534.54,0.00015999,2]
[419780513,1775375465741,-534.54,0.00015999,2]
[419780514,1775375465751,-534.54,0.00015999,2]
[419780515,1775375465760,-534.54,0.00015999,2]
[419780516,1775375465770,-534.54,0.00015999,2]
[419780517,1775375465780,-534.56,0.00015999,2]
[419780518,1775375465790,-624.84,0.00015999,2]
[419780519,1775375465800,-624.84,0.00015999,2]
[419780520,1775375465810,-624.84,0.00015999,2]
[419780521,1775375465820,-624.84,0.00015999,2]
[419780522,1775375465830,-624.84,0.00015999,2]
[419780523,1775375465839,-624.84,0.00015999,2]
[419780524,1775375465849,-625.0,0.00015999,2]
[419780525,1775375465858,-989.7,0.00015999,2]
[419780526,1775375465867,-989.7,0.00015999,2]
[419780527,1775375465877,-989.7,0.00015999,2]
[419780528,1775375465887,-989.7,0.00015999,2]
[419780529,1775375466014,-989.7,0.00015999,2]
[419780530,1775375466023,-989.83053791,0.00015999,2]
[419780531,1775375466033,-1289.0,0.00015999,2]
[419780532,1775375466043,-1289.0,0.00015999,2]
[419780533,1775375466053,-1289.0,0.00015999,2]
[419780534,1775375466062,-1289.0,0.00015999,2]
[419780535,1775375466072,-1289.0,0.00015999,2]
[419780536,1775375466082,-1289.07918003,0.00015999,2]
[419780537,1775375466092,-500.4,0.00015999,2]
[419780538,1775375466102,-500.4,0.00015999,2]
[419780539,1775375466111,-500.4,0.00015999,2]
[419780540,1775375466121,-500.4,0.00015999,2]
[419780541,1775375466131,-500.4,0.00015999,2]
[419780542,1775375466141,-500.4,0.00015999,2]
[419780543,1775375466150,-500.4,0.00015999,2]
[419780544,1775375466160,-889.96,0.00015999,2]
[419780545,1775375466170,-889.96,0.00015999,2]
[419780546,1775375466180,-889.96,0.00015999,2]
[419780547,1775375466190,-889.96,0.00015999,2]
[419780548,1775375466200,-889.96,0.00015999,2]
[419780549,1775375466210,-889.97745143,0.00015999,2]
[419780550,1775375466221,-500.0,0.00015999,2]
[419780551,1775375466231,-500.0,0.00015999,2]
[419780552,1775375466241,-500.0,0.00015999,2]
[419780553,1775375466250,-500.0,0.00015999,2]
[419780554,1775375466260,-500.0,0.00015999,2]
[419780555,1775375466271,-344.08,0.00015999,2]
[419780556,1775375466282,-509.57,0.00015999,2]
[419780557,1775375466292,-509.57,0.00015999,2]
[419780558,1775375466301,-509.57,0.00015999,2]
[419780559,1775375466311,-509.57,0.00015999,2]
[419780560,1775375466320,-509.57,0.00015999,2]
[419780561,1775375466330,-509.57,0.00015999,2]
[419780562,1775375466340,-509.77,0.00015999,2]
[419780563,1775375466349,-536.08,0.00015999,2]
[419780564,1775375466359,-536.08,0.00015999,2]
[419780565,1775375466368,-536.08,0.00015999,2]
[419780566,1775375466378,-536.08,0.00015999,2]
[419780567,1775375466387,-536.08,0.00015999,2]
[419780568,1775375466397,-536.08,0.00015999,2]
[419780569,1775375466407,-536.08,0.00015999,2]
[419780570,1775375466417,-536.08,0.00015999,2]
[419780571,1775375466427,-536.08,0.00015999,2]
[419780572,1775375466436,-536.08,0.00015999,2]
[419780573,1775375466446,-536.08,0.00015999,2]
[419780574,1775375466455,-536.26,0.00015999,2]
[419780575,1775375466465,-698.2,0.00015999,2]
[419780576,1775375466475,-698.2,0.00015999,2]
[419780577,1775375466484,-698.2,0.00015999,2]
[419780578,1775375466494,-698.2,0.00015999,2]
[419780579,1775375466504,-698.2,0.00015999,2]
[419780580,1775375466513,-698.2,0.00015999,2]
[419780581,1775375466523,-698.2,0.00015999,2]
[419780582,1775375466532,-698.2,0.00015999,2]
[419780583,1775375466541,-698.2,0.00015999,2]
[419780584,1775375466551,-698.2,0.00015999,2]
[419780585,1775375466560,-698.2,0.00015999,2]
[419780586,1775375466569,-698.4,0.00015999,2]
[419780587,1775375466578,-500.0,0.00015999,2]
[419780588,1775375466587,-500.0,0.00015999,2]
[419780589,1775375466596,-500.0,0.00015999,2]
[419780590,1775375466606,-500.0,0.00015999,2]
[419780591,1775375466615,-500.0,0.00015999,2]
[419780592,1775375466624,-500.0,0.00015999,2]
[419780593,1775375466633,-500.0,0.00015999,2]
[419780594,1775375466643,-500.0,0.00015999,2]
[419780595,1775375466652,-500.0,0.00015999,2]
[419780596,1775375466661,-500.0,0.00015999,2]
[419780597,1775375466670,-569.48,0.00015999,2]
[419780598,1775375466680,-1747335.38612099,0.00016,2]
[419780599,1775375466691,-28266.10442463,0.00016,2]
[419780600,1775375468924,-151.0,0.00013699,2]
[419780601,1775375468936,-313.0,0.000158,2]
[419780602,1775375468946,-152.0,0.00015884,2]
[419780603,1775375468956,-1629.53269329,0.00016,2]
[419780604,1775375470112,-679.49157128,9.671e-05,2]
[419780605,1775375470142,-2505.72939842,9.671e-05,2]
[419780606,1775375470761,500.0,9.59e-05,2]
[419780607,1775375470810,500.0,9.59e-05,2]
[419780608,1775375470824,-349.8,9.671e-05,2]
[419780609,1775375470865,500.0,9.59e-05,2]
[419780610,1775375470883,-13652.17759727,9.671e-05,2]
[419780611,1775375470896,-5604.04904164,9.671e-05,2]
[419780612,1775375470938,500.0,9.59e-05,2]
[419780613,1775375470992,500.0,9.59e-05,2]
[419780614,1775375471039,500.0,9.59e-05,2]
[419780615,1775375471095,500.0,9.59e-05,2]
[419780616,1775375471144,500.0,9.59e-05,2]
[419780617,1775375471192,500.0,9.59e-05,2]
[419780618,1775375471242,500.0,9.59e-05,2]
[419780619,1775375471286,0.01,9.59e-05,2]
[419780620,1775375471319,499.99,9.59e-05,2]
[419780621,1775375471367,500.0,9.59e-05,2]
[419780622,1775375471418,500.0,9.59e-05,2]
[419780623,1775375471466,500.0,9.59e-05,2]
[419780624,1775375471541,500.0,9.59e-05,2]
[419780625,1775375471587,500.0,9.59e-05,2]
[419780626,1775375471633,500.0,9.59e-05,2]
[419780627,1775375471687,463.48029233,9.59e-05,2]
[419780628,1775375471778,463.48029233,9.59e-05,2]
[419780629,1775375473344,150.0,9.589e-05,2]
[419780630,1775375491196,5000.01,9.59e-05,2]
[419780631,1775375491219,5000.01,9.59e-05,2]
[419780632,1775375491242,5000.01,9.59e-05,2]
[419780633,1775375491266,5000.01,9.59e-05,2]
[419780634,1775375536687,2070.7998187,9.49e-05,2]
[419780635,1775375587583,1181.874795,7.945e-05,2]
[419780636,1775375621840,1747.3353863,9.58e-05,2]
[419780637,1775375621862,3255.6646137,9.58e-05,2]
[419780638,1775375648543,352.692045,7.945e-05,2]
[419780639,1775375670956,150.0,9.3e-05,2]
[419780643,1775375738463,1241.6533413,5.342e-05,2]
[419780644,1775375738484,4055.1966587,5.342e-05,2]
[419780645,1775375738677,944.8133413,5.623e-05,2]
[419780646,1775375738697,4352.0366587,5.623e-05,2]
[419780647,1775375738899,647.9733413,5.905e-05,2]
[419780648,1775375738921,4648.8766587,5.905e-05,2]
[419780649,1775375739306,351.1333413,6.186e-05,2]
[419780650,1775375739328,4945.7166587,6.186e-05,2]
[419780651,1775375739502,54.2933413,6.467e-05,2]
[419780652,1775375739527,1026.0717177,6.467e-05,2]
[419780653,1775375739554,4216.484941,6.467e-05,2]
[419780654,1775375739693,5296.85,6.748e-05,2]
[419780655,1775375743786,-4703.16,7.029e-05,2]
[419780656,1775375743920,-593.69,7.029e-05,2]
[419780657,1775375743949,-3515.78,7.31e-05,2]
[419780658,1775375744030,-1781.07,7.31e-05,2]
[419780659,1775375744058,-1141.02,7.592e-05,2]
[419780660,1775375744105,-1529.66318005,7.592e-05,2]
[419780661,1775375744141,-2626.16681995,7.592e-05,2]
[419780662,1775375744181,-4747.6763601,7.873e-05,2]
[419780663,1775375746363,-549.1736399,7.873e-05,2]
[419780664,1775375746953,-4703.16,8.154e-05,2]
[419780665,1775375746988,-593.69,8.154e-05,2]
[419780666,1775375747017,-3515.78,8.435e-05,2]
[419780667,1775375747126,-1781.07,8.435e-05,2]
[419780668,1775375747136,-593.69,8.716e-05,2]
[419780669,1775375749466,-296.85,8.716e-05,2]
[419780670,1775375749509,-3731.02213554,8.716e-05,2]
[419780671,1775375749600,-675.28786446,8.716e-05,2]
[419780672,1775375749633,-3649.43427108,8.997e-05,2]
[419780673,1775375749705,-1647.41572892,8.997e-05,2]
[419780674,1775375749746,-1705.17854216,9.279e-05,2]
[419780675,1775375749839,-1408.33854216,9.279e-05,2]
[419780676,1775375749865,-2183.33291568,9.279e-05,2]
[419780677,1775375752426,-5000.01,9.56e-05,2]
[419780678,1775375752766,-296.84,9.56e-05,2]
[419780679,1775375794030,150.0,9.299e-05,2]
[419780680,1775375823408,500.0,9.573e-05,2]
[419780681,1775375829029,200.0,9.8e-05,3]
[419780682,1775375831149,400.0,9.9e-05,3]
[419780683,1775375833241,600.0,0.0001,3]
[419780685,1775376043646,1852.42,9.046e-05,2]
[419780686,1775376073913,-288.0,9.58e-05,2]
[419780687,1775376073936,-228.63481586,9.58e-05,2]
[419780688,1775376073959,-300.0,9.585e-05,2]
[419780689,1775376073981,-254.0,9.586e-05,2]
[419780690,1775376074005,-1200.0,9.586e-05,2]
[419780691,1775376074026,-300.0,9.586e-05,2]
[419780692,1775376074049,-7429.36518414,9.586e-05,2]
[419780693,1775376085441,-10000.0,9.586e-05,2]
[419780694,1775376097667,-6652.271,9.586e-05,2]
[419780695,1775376097688,-331.507,9.586e-05,2]
[419780696,1775376097710,-1016.222,9.587e-05,2]
[419780713,1775376120145,-2000.0,9.587e-05,2]
[419780714,1775376144989,-213.77083829,9.587e-05,2]
[419780715,1775376145011,-1983.778,9.587e-05,2]
[419780716,1775376145033,-250.0,9.587e-05,2]
[419780717,1775376145057,-151.0,9.587e-05,2]
[419780718,1775376145079,-5.45116171,9.587e-05,2]
[419780720,1775376169327,-145.54883829,9.587e-05,2]
[419780721,1775376169349,-2049.42831083,9.587e-05,2]
[419780722,1775376169371,-300.0,9.588e-05,2]
[419780723,1775376169392,-300.0,9.588e-05,2]
[419780724,1775376169414,-250.0,9.588e-05,2]
[419780725,1775376169434,-150.0,9.589e-05,2]
[419780726,1775376169455,-600.0,9.589e-05,2]
[419780727,1775376169481,-532.46196237,9.589e-05,2]
[419780728,1775376169507,-500.0,9.589e-05,2]
[419780729,1775376169532,-172.56088851,9.589e-05,2]
[419780730,1775376193348,-300.0,9.589e-05,2]
[419780731,1775376193372,-150.0,9.589e-05,2]
[419780732,1775376193395,-252.53960914,9.589e-05,2]
[419780733,1775376193421,-417.65006352,9.589e-05,2]
[419780734,1775376193445,-7582.81032734,9.59e-05,2]
[419780736,1775376220851,-1980.0,9.589e-05,2]
[419780737,1775376249585,-242.0,9.589e-05,2]
[419780738,1775376390550,170.28,7.632e-05,2]
[419780739,1775376422390,166.0,0.00016101,120]
[419780740,1775376424163,200.0,9.8e-05,3]
[419780741,1775376425843,500.0,9.9e-05,3]
[419780742,1775376427939,700.0,0.0001,3]
[419780743,1775376429621,166.0,0.000161,120]
[419780744,1775376440301,-300.0,9.587e-05,2]
[419780745,1775376440324,-300.0,9.587e-05,2]
[419780746,1775376440347,-300.0,9.588e-05,2]
[419780747,1775376440371,-1200.0,9.588e-05,2]
[419780748,1775376440394,-8703.01716043,9.588e-05,2]
[419780749,1775376440417,-7450.87274191,9.589e-05,2]
[419780750,1775376440440,-1200.0,9.589e-05,2]
[419780751,1775376440463,-150.0,9.589e-05,2]
[419780752,1775376440487,-250.0,9.59e-05,2]
[419780753,1775376440513,-41757.62053218,9.59e-05,2]
[419780754,1775376458176,4829.73,8e-05,2]
[419780755,1775376458198,5000.01,8e-05,2]
[419780756,1775376458220,5000.01,8e-05,2]
[419780757,1775376458243,5000.01,8e-05,2]
[419780758,1775376460020,-1093.01475431,8e-05,2]
[419780759,1775376460252,-2186.02950862,8e-05,2]
[419780760,1775376460399,-627.95098276,8e-05,2]
[419780761,1775376518146,-150.0,9.302e-05,2]
[419780762,1775376518191,-9700.01,9.531e-05,2]
[419780763,1775376518353,-10000.01,9.531e-05,2]
[419780764,1775376518501,-10000.01,9.531e-05,2]
[419780765,1775376518625,-10000.01,9.531e-05,2]
[419780766,1775376518757,-10000.01,9.531e-05,2]
[419780767,1775376518858,-10000.01,9.531e-05,2]
[419780768,1775376518977,-10000.01,9.531e-05,2]
[419780769,1775376519143,-10000.01,9.531e-05,2]
[419780770,1775376519293,-10000.01,9.531e-05,2]
[419780771,1775376520887,-939.51147414,9.531e-05,2]
[419780772,1775376521024,-5000.01,9.531e-05,2]
[419780773,1775376521115,-5000.01,9.531e-05,2]
[419780774,1775376525226,-5000.01,9.531e-05,2]
[419780775,1775376525240,-5000.01,9.531e-05,2]
[419780776,1775376525253,-5000.01,9.531e-05,2]
[419780777,1775376525291,-5000.01,9.531e-05,2]
[419780778,1775376530092,-10000.01,9.531e-05,2]
[419780779,1775376530220,-10000.01,9.531e-05,2]
[419780780,1775376530326,-10000.01,9.531e-05,2]
[419780781,1775376530434,-10000.01,9.531e-05,2]
[419780782,1775376530580,-10000.01,9.531e-05,2]
[419780783,1775376530656,-10000.01,9.531e-05,2]
[419780784,1775376530766,-10000.01,9.531e-05,2]
[419780785,1775376530865,-10000.01,9.531e-05,2]
[419780786,1775376530965,-10000.01,9.531e-05,2]
[419780787,1775376539589,1105.5079588,7e-05,2]
[419780788,1775376590085,394.07048167,7.888e-05,2]
[419780789,1775376599482,1105.5079588,9.451e-05,2]
[419780796,1775376632222,-1200.0,9.53e-05,2]
[419780797,1775376632232,-299.0,9.53e-05,2]
[419780798,1775376632242,-150.0,9.53e-05,2]
[419780799,1775376632252,-300.0,9.53e-05,2]
[419780800,1775376632263,-300.0,9.53e-05,2]
[419780801,1775376632272,-300.0,9.53e-05,2]
[419780802,1775376632283,-1200.0,9.53e-05,2]
[419780803,1775376632293,-266025.53115458,9.531e-05,2]
[419780804,1775376632305,-4585.95140175,9.531e-05,2]
[419780805,1775376632317,-58867.67440655,9.531e-05,2]
[419780806,1775376632379,-675.352,9.531e-05,2]
[419780807,1775376632390,-1652.648,9.531e-05,2]
[419780808,1775376632405,-4705.26413831,9.531e-05,2]
[419780809,1775376632488,-95016.04559307,9.531e-05,2]
[419780812,1775376638264,-639.7403833,9.531e-05,2]
[419780813,1775376638528,-585314.72902317,9.531e-05,2]
[419780814,1775376638540,-310064.35658853,9.531e-05,2]
[419780815,1775376638551,-396.61291239,9.531e-05,2]
[419780816,1775376638561,-1357.99078211,9.531e-05,2]
[419780817,1775376638570,-2157.69240503,9.531e-05,2]
[419780818,1775376638579,-869.43266541,9.531e-05,2]
[419780819,1775376638588,-500.0,9.573e-05,2]
[419780820,1775376638599,-633.18121348,9.573e-05,2]
[419780821,1775376638610,-500.0,9.573e-05,2]
[419780822,1775376638619,-500.0,9.573e-05,2]
[419780823,1775376638629,-348.90078064,9.573e-05,2]
[419780824,1775376638638,-500.0,9.573e-05,2]
[419780825,1775376638648,-500.0,9.573e-05,2]
[419780826,1775376638657,-500.0,9.573e-05,2]
[419780827,1775376638667,-500.0,9.573e-05,2]
[419780828,1775376638677,-159.62018257,9.573e-05,2]
[419780829,1775376638686,-315.82984455,9.573e-05,2]
[419780830,1775376638695,-500.0,9.573e-05,2]
[419780831,1775376638705,-500.0,9.589e-05,2]
[419780832,1775376638714,-347.92175585,9.589e-05,2]
[419780833,1775376638724,-500.0,9.589e-05,2]
[419780834,1775376638734,-500.0,9.589e-05,2]
[419780835,1775376638743,-500.0,9.589e-05,2]
[419780836,1775376638753,-500.0,9.589e-05,2]
[419780837,1775376638762,-500.0,9.589e-05,2]
[419780838,1775376638771,-500.0,9.589e-05,2]
[419780839,1775376638780,-202.25588051,9.589e-05,2]
[419780840,1775376638789,-500.0,9.589e-05,2]
[419780842,1775376638799,-228.32445712,9.589e-05,2]
[419780844,1775376638808,-500.0,9.589e-05,2]
[419780845,1775376638819,-210.99247258,9.589e-05,2]
[419780846,1775376638828,-184.24799768,9.589e-05,2]
[419780847,1775376638838,-180.65807632,9.589e-05,2]
[419780848,1775376638847,-286.07,9.6e-05,2]
[419780850,1775376638857,-5847.96,9.648e-05,2]
[419780851,1775376638867,-4528.68,9.664e-05,2]
[419780852,1775376638876,-33032.4137,9.691e-05,2]
[419780853,1775376638886,-1000.0,9.691e-05,2]
[419780854,1775376638896,-205.0,9.8e-05,2]
[419780855,1775376638905,-222.0,9.826e-05,2]
[419780856,1775376638915,-155.0,9.826e-05,2]
[419780857,1775376638925,-166.66,9.826e-05,2]
[419780858,1775376638934,-5296.85,9.841e-05,2]
[419780859,1775376638944,-16676.09462206,9.91e-05,2]
[419780860,1775376638971,-19154.84729095,9.91e-05,2]
[419780861,1775376638983,-34757.95270503,9.91e-05,2]
[419780862,1775376638993,-500.0,0.0001,2]
[419780863,1775376639003,-36501.6658983,0.0001,2]
[419780864,1775376639012,-297.3644976,0.0001,2]
[419780865,1775376639021,-839.79946318,0.0001,2]
[419780866,1775376639031,-500.0,0.0001,2]
[419780867,1775376639040,-500.0,0.0001,2]
[419780868,1775376639049,-500.0,0.0001,2]
[419780869,1775376639058,-500.0,0.0001,2]
[419780870,1775376639067,-500.0,0.0001,2]
[419780871,1775376639076,-500.0,0.0001,2]
[419780872,1775376639086,-500.0,0.0001,2]
[419780873,1775376639095,-500.0,0.0001,2]
[419780874,1775376639104,-500.0,0.0001,2]
[419780875,1775376639113,-500.0,0.0001,2]
[419780876,1775376639123,-200.0,0.0001,2]
[419780877,1775376639132,-500.0,0.0001,2]
[419780878,1775376639142,-500.0,0.0001,2]
[419780879,1775376639152,-151.0,0.0001,2]
[419780880,1775376639162,-500.0,0.0001,2]
[419780881,1775376639171,-151.0,0.0001,2]
[419780882,1775376639180,-500.0,0.0001,2]
[419780883,1775376639190,-151.0,0.0001,2]
[419780884,1775376639200,-500.0,0.0001,2]
[419780885,1775376639209,-151.0,0.0001,2]
[419780886,1775376639218,-500.0,0.0001,2]
[419780887,1775376639227,-151.0,0.0001,2]
[419780888,1775376639237,-500.0,0.0001,2]
[419780889,1775376639246,-151.0,0.0001,2]
[419780890,1775376639255,-500.0,0.0001,2]
[419780891,1775376639265,-151.0,0.0001,2]
[419780892,1775376639274,-151.0,0.0001,2]
[419780893,1775376639283,-500.0,0.0001,2]
[419780894,1775376639292,-151.0,0.0001,2]
[419780895,1775376639302,-151.0,0.0001,2]
[419780896,1775376639311,-500.0,0.0001,2]
[419780897,1775376639320,-151.0,0.0001,2]
[419780898,1775376639330,-151.0,0.0001,2]
[419780899,1775376639339,-331.30032664,0.0001,2]
[419780903,1775376640579,-168.69967336,0.0001,2]
[419780904,1775376640589,-151.0,0.0001,2]
[419780905,1775376640599,-151.0,0.0001,2]
[419780906,1775376640608,-500.0,0.0001,2]
[419780907,1775376640617,-151.0,0.0001,2]
[419780908,1775376640627,-151.0,0.0001,2]
[419780909,1775376640637,-151.0,0.0001,2]
[419780910,1775376640646,-151.0,0.0001,2]
[419780911,1775376640656,-151.0,0.0001,2]
[419780912,1775376640665,-151.0,0.0001,2]
[419780913,1775376640675,-151.0,0.0001,2]
[419780914,1775376640684,-151.0,0.0001,2]
[419780915,1775376640694,-151.0,0.0001,2]
[419780916,1775376640704,-151.0,0.0001,2]
[419780917,1775376640714,-151.0,0.0001,2]
[419780918,1775376640723,-151.0,0.0001,2]
[419780919,1775376640733,-151.0,0.0001,2]
[419780920,1775376640743,-151.0,0.0001,2]
[419780921,1775376640752,-151.0,0.0001,2]
[419780922,1775376640761,-151.0,0.0001,2]